[Event "Titled Tuesday Blitz May 23 Early 2023"]
[White "Bagrationi, Alexander"]
[Black "Nissinen, Niilo Man"]
[WhiteFideId "14104954"]
[BlackFideId "30950767"]
[WhiteElo "2398"]
[BlackElo "1952"]
[Result "1-0"]
[Round "01"]
[TimeControl "180+2"]
[Date "2023.05.23"]
[WhiteClock "0:00:41"]
[BlackClock "0:00:00"]

1. e4 {[%clk 0:02:58]}  e5 {[%clk 0:02:58]} 2. Nf3 {[%clk 0:02:57]}  Nc6 {[%clk 0:02:59]} 3. Bc4 {[%clk 0:02:57]}  Bc5 {[%clk 0:02:58]} 4. d4 {[%clk 0:02:56]}  exd4 {[%clk 0:02:53]} 5. O-O {[%clk 0:02:56]}  Nf6 {[%clk 0:02:49]} 6. e5 {[%clk 0:02:54]}  d5 {[%clk 0:02:46]} 7. exf6 {[%clk 0:02:55]}  dxc4 {[%clk 0:02:44]} 8. fxg7 {[%clk 0:02:55]}  Rg8 {[%clk 0:02:43]} 9. Re1+ {[%clk 0:02:55]}  Be6 {[%clk 0:02:39]} 10. Bg5 {[%clk 0:02:53]}  Qd5 {[%clk 0:02:36]} 11. Nc3 {[%clk 0:02:47]}  Qf5 {[%clk 0:02:10]} 12. Ne4 {[%clk 0:02:45]}  Rxg7 {[%clk 0:02:03]} 13. Nxc5 {[%clk 0:02:26]}  Qxc5 {[%clk 0:02:02]} 14. Bf6 {[%clk 0:02:24]}  Rg6 {[%clk 0:01:55]} 15. Bxd4 {[%clk 0:02:24]}  Nxd4 {[%clk 0:01:53]} 16. Qxd4 {[%clk 0:02:24]}  Qxd4 {[%clk 0:01:46]} 17. Nxd4 {[%clk 0:02:25]}  O-O-O {[%clk 0:01:41]} 18. c3 {[%clk 0:02:18]}  Bd5 {[%clk 0:01:39]} 19. g3 {[%clk 0:02:14]}  Rb6 {[%clk 0:01:27]} 20. Re2 {[%clk 0:02:13]}  c5 {[%clk 0:01:22]} 21. Nf5 {[%clk 0:02:13]}  Bf3 {[%clk 0:01:20]} 22. Re3 {[%clk 0:02:11]}  Rd3 {[%clk 0:01:20]} 23. Rb1 {[%clk 0:02:01]}  Rxb2 {[%clk 0:01:18]} 24. Rbe1 {[%clk 0:01:40]}  Rxe3 {[%clk 0:01:03]} 25. Nxe3 {[%clk 0:01:39]}  b5 {[%clk 0:01:03]} 26. a4 {[%clk 0:01:36]}  a6 {[%clk 0:00:57]} 27. h4 {[%clk 0:01:31]}  bxa4 {[%clk 0:00:37]} 28. Ra1 {[%clk 0:01:06]}  a3 {[%clk 0:00:37]} 29. Nxc4 {[%clk 0:01:02]}  Rc2 {[%clk 0:00:25]} 30. Nxa3 {[%clk 0:01:02]}  Rxc3 {[%clk 0:00:25]} 31. Kf1 {[%clk 0:01:03]}  Kc7 {[%clk 0:00:20]} 32. Ke1 {[%clk 0:00:58]}  Rd3 {[%clk 0:00:16]} 33. Nc4 {[%clk 0:00:53]}  Kb7 {[%clk 0:00:12]} 34. Ne5 {[%clk 0:00:45]}  Rb3 {[%clk 0:00:12]} 35. Ra5 {[%clk 0:00:41]}  Kb6 {[%clk 0:00:11]} 36. Nc4+ {[%clk 0:00:42]}  Kb7 {[%clk 0:00:09]} 37. Rxc5 {[%clk 0:00:41]}  Rb1+ {[%clk 0:00:00]} 38. Kd2 {[%clk 0:00:41]} 1-0


[Site "https://www.chess.com"]

[Event "Titled Tuesday Blitz May 23 Early 2023"]
[White "zsizsi99"]
[Black "Bodnaruk, Anastasia"]
[BlackFideId "4181751"]
[WhiteElo "2281"]
[BlackElo "2304"]
[Result "0-1"]
[Round "01"]
[TimeControl "180+2"]
[Date "2023.05.23"]
[WhiteClock "0:00:00"]
[BlackClock "0:00:44"]

1. e4 {[%clk 0:02:59]}  c5 {[%clk 0:02:59]} 2. Nf3 {[%clk 0:02:59]}  d6 {[%clk 0:03:00]} 3. d4 {[%clk 0:02:59]}  cxd4 {[%clk 0:03:00]} 4. Nxd4 {[%clk 0:03:00]}  Nf6 {[%clk 0:03:01]} 5. Nc3 {[%clk 0:03:00]}  a6 {[%clk 0:03:01]} 6. Be2 {[%clk 0:03:01]}  e5 {[%clk 0:03:00]} 7. Nb3 {[%clk 0:03:01]}  Be7 {[%clk 0:03:00]} 8. O-O {[%clk 0:03:00]}  O-O {[%clk 0:03:00]} 9. Kh1 {[%clk 0:02:58]}  b6 {[%clk 0:02:58]} 10. f4 {[%clk 0:02:57]}  Bb7 {[%clk 0:02:55]} 11. Bf3 {[%clk 0:02:54]}  b5 {[%clk 0:02:54]} 12. a4 {[%clk 0:02:50]}  b4 {[%clk 0:02:54]} 13. Nd5 {[%clk 0:02:50]}  Nxd5 {[%clk 0:02:54]} 14. exd5 {[%clk 0:02:51]}  Nd7 {[%clk 0:02:37]} 15. a5 {[%clk 0:02:43]}  Bf6 {[%clk 0:02:21]} 16. f5 {[%clk 0:02:40]}  Nc5 {[%clk 0:02:17]} 17. Bd2 {[%clk 0:02:27]}  e4 {[%clk 0:02:04]} 18. Nxc5 {[%clk 0:02:14]}  dxc5 {[%clk 0:02:01]} 19. Bxe4 {[%clk 0:02:15]}  Bxd5 {[%clk 0:01:56]} 20. Bxd5 {[%clk 0:01:57]}  Qxd5 {[%clk 0:01:55]} 21. Be3 {[%clk 0:01:57]}  Rad8 {[%clk 0:01:38]} 22. Qxd5 {[%clk 0:01:54]}  Rxd5 {[%clk 0:01:38]} 23. Rad1 {[%clk 0:01:54]}  Rfd8 {[%clk 0:01:35]} 24. Rxd5 {[%clk 0:01:53]}  Rxd5 {[%clk 0:01:36]} 25. b3 {[%clk 0:01:53]}  h5 {[%clk 0:01:29]} 26. g3 {[%clk 0:01:41]}  Kf8 {[%clk 0:01:27]} 27. Kg2 {[%clk 0:01:38]}  Ke7 {[%clk 0:01:28]} 28. h3 {[%clk 0:01:32]}  Kd6 {[%clk 0:01:24]} 29. g4 {[%clk 0:01:32]}  hxg4 {[%clk 0:01:24]} 30. hxg4 {[%clk 0:01:33]}  Kc6 {[%clk 0:01:17]} 31. g5 {[%clk 0:01:23]}  Bc3 {[%clk 0:01:16]} 32. g6 {[%clk 0:00:26]}  fxg6 {[%clk 0:01:04]} 33. fxg6 {[%clk 0:00:27]}  Rd6 {[%clk 0:01:02]} 34. Rf5 {[%clk 0:00:26]}  Rxg6+ {[%clk 0:01:02]} 35. Kh2 {[%clk 0:00:14]}  Bd4 {[%clk 0:01:00]} 36. Bxd4 {[%clk 0:00:14]}  cxd4 {[%clk 0:01:01]} 37. Kh3 {[%clk 0:00:10]}  Rf6 {[%clk 0:00:51]} 38. Rg5 {[%clk 0:00:08]}  Rf2 {[%clk 0:00:50]} 39. Rxg7 {[%clk 0:00:06]}  Rxc2 {[%clk 0:00:50]} 40. Rg6+ {[%clk 0:00:07]}  Kb5 {[%clk 0:00:49]} 41. Rg5+ {[%clk 0:00:06]}  Rc5 {[%clk 0:00:49]} 42. Rg4 {[%clk 0:00:05]}  Rd5 {[%clk 0:00:50]} 43. Rg1 {[%clk 0:00:03]}  d3 {[%clk 0:00:50]} 44. Kg3 {[%clk 0:00:03]}  Kc5 {[%clk 0:00:47]} 45. Kf3 {[%clk 0:00:03]}  Kd4 {[%clk 0:00:46]} 46. Rg4+ {[%clk 0:00:02]}  Kc3 {[%clk 0:00:46]} 47. Ke3 {[%clk 0:00:00]}  d2 {[%clk 0:00:44]} 0-1


[Site "https://www.chess.com"]

[Event "Titled Tuesday Blitz May 23 Early 2023"]
[White "Erzhanov, Arman"]
[Black "Dilmukhametov, Artur"]
[WhiteFideId "4138821"]
[BlackFideId "24179922"]
[WhiteElo "2138"]
[BlackElo "2242"]
[Result "1-0"]
[Round "01"]
[TimeControl "180+2"]
[Date "2023.05.23"]
[WhiteClock "0:01:19"]
[BlackClock "0:01:30"]

1. e4 {[%clk 0:02:58]}  e6 {[%clk 0:02:44]} 2. b3 {[%clk 0:02:58]}  d5 {[%clk 0:02:44]} 3. Bb2 {[%clk 0:02:58]}  c5 {[%clk 0:02:43]} 4. exd5 {[%clk 0:02:56]}  exd5 {[%clk 0:02:42]} 5. Nf3 {[%clk 0:02:56]}  Nf6 {[%clk 0:02:41]} 6. Bb5+ {[%clk 0:02:56]}  Nc6 {[%clk 0:02:41]} 7. O-O {[%clk 0:02:55]}  Bd6 {[%clk 0:02:39]} 8. Re1+ {[%clk 0:02:55]}  Be6 {[%clk 0:02:38]} 9. d4 {[%clk 0:02:38]}  cxd4 {[%clk 0:02:37]} 10. Nxd4 {[%clk 0:02:38]}  Qd7 {[%clk 0:02:32]} 11. Nd2 {[%clk 0:02:08]}  O-O {[%clk 0:02:31]} 12. Nxc6 {[%clk 0:01:58]}  bxc6 {[%clk 0:02:30]} 13. Bxf6 {[%clk 0:01:57]}  gxf6 {[%clk 0:02:30]} 14. Bd3 {[%clk 0:01:56]}  Kh8 {[%clk 0:02:28]} 15. Qh5 {[%clk 0:01:56]}  f5 {[%clk 0:02:25]} 16. Re3 {[%clk 0:01:52]}  Rg8 {[%clk 0:02:25]} 17. Rh3 {[%clk 0:01:52]}  Rg7 {[%clk 0:02:25]} 18. Nf3 {[%clk 0:01:50]}  Rag8 {[%clk 0:02:22]} 19. Ng5 {[%clk 0:01:43]}  f6 {[%clk 0:02:08]} 20. Nxe6 {[%clk 0:01:42]}  Qxe6 {[%clk 0:02:07]} 21. Bxf5 {[%clk 0:01:39]}  Qe7 {[%clk 0:02:03]} 22. Kf1 {[%clk 0:01:36]}  Be5 {[%clk 0:02:00]} 23. Re1 {[%clk 0:01:33]}  Qb7 {[%clk 0:01:57]} 24. Bd3 {[%clk 0:01:21]}  c5 {[%clk 0:01:39]} 25. Rxe5 {[%clk 0:01:19]}  fxe5 {[%clk 0:01:38]} 26. Qxe5 {[%clk 0:01:20]}  Qf7 {[%clk 0:01:30]} 27. Rxh7# {[%clk 0:01:19]} 1-0


[Site "https://www.chess.com"]

[Event "Titled Tuesday Blitz May 23 Early 2023"]
[White "Wimalasuriya, Kasun M."]
[Black "Lorenzo De La Riva, Lazaro"]
[WhiteFideId "9906789"]
[BlackFideId "2268809"]
[WhiteElo "2270"]
[BlackElo "2294"]
[Result "1-0"]
[Round "01"]
[TimeControl "180+2"]
[Date "2023.05.23"]
[WhiteClock "0:00:11"]
[BlackClock "0:00:04"]

1. d4 {[%clk 0:02:59]}  Nf6 {[%clk 0:02:55]} 2. Nf3 {[%clk 0:02:58]}  d5 {[%clk 0:02:51]} 3. g3 {[%clk 0:02:58]}  e6 {[%clk 0:02:51]} 4. Bg2 {[%clk 0:02:59]}  Be7 {[%clk 0:02:51]} 5. O-O {[%clk 0:02:59]}  O-O {[%clk 0:02:51]} 6. c4 {[%clk 0:02:57]}  dxc4 {[%clk 0:02:52]} 7. Ne5 {[%clk 0:02:56]}  Nc6 {[%clk 0:02:50]} 8. Nxc6 {[%clk 0:02:38]}  bxc6 {[%clk 0:02:51]} 9. Bxc6 {[%clk 0:02:37]}  Rb8 {[%clk 0:02:46]} 10. e3 {[%clk 0:02:33]}  Bb7 {[%clk 0:02:35]} 11. Bxb7 {[%clk 0:02:28]}  Rxb7 {[%clk 0:02:36]} 12. Nd2 {[%clk 0:02:28]}  Qd5 {[%clk 0:02:28]} 13. Qc2 {[%clk 0:02:27]}  Qh5 {[%clk 0:01:48]} 14. Kg2 {[%clk 0:02:20]}  Nd5 {[%clk 0:01:25]} 15. Qxc4 {[%clk 0:02:08]}  Rb4 {[%clk 0:01:22]} 16. Qc2 {[%clk 0:02:03]}  Qe2 {[%clk 0:01:22]} 17. Qe4 {[%clk 0:01:48]}  Bg5 {[%clk 0:01:03]} 18. Qf3 {[%clk 0:01:39]}  Qd3 {[%clk 0:00:58]} 19. a3 {[%clk 0:01:22]}  Rb6 {[%clk 0:00:50]} 20. Ne4 {[%clk 0:01:06]}  Bh6 {[%clk 0:00:40]} 21. Nc5 {[%clk 0:01:02]}  Qb5 {[%clk 0:00:35]} 22. b4 {[%clk 0:00:59]}  Re8 {[%clk 0:00:30]} 23. e4 {[%clk 0:00:48]}  Bxc1 {[%clk 0:00:29]} 24. Raxc1 {[%clk 0:00:44]}  Nf6 {[%clk 0:00:28]} 25. Rfd1 {[%clk 0:00:43]}  a5 {[%clk 0:00:25]} 26. Rb1 {[%clk 0:00:40]}  a4 {[%clk 0:00:23]} 27. Rbc1 {[%clk 0:00:39]}  c6 {[%clk 0:00:19]} 28. Rc3 {[%clk 0:00:34]}  h6 {[%clk 0:00:19]} 29. Rdc1 {[%clk 0:00:33]}  Nh7 {[%clk 0:00:20]} 30. Nd7 {[%clk 0:00:31]}  Ng5 {[%clk 0:00:18]} 31. Qe3 {[%clk 0:00:26]}  Rb7 {[%clk 0:00:18]} 32. Ne5 {[%clk 0:00:26]}  Rc7 {[%clk 0:00:17]} 33. Rc5 {[%clk 0:00:24]}  Qb7 {[%clk 0:00:15]} 34. h4 {[%clk 0:00:24]}  Nh7 {[%clk 0:00:15]} 35. Rxc6 {[%clk 0:00:24]}  Rxc6 {[%clk 0:00:15]} 36. Rxc6 {[%clk 0:00:24]}  Nf6 {[%clk 0:00:15]} 37. f3 {[%clk 0:00:20]}  Nd7 {[%clk 0:00:14]} 38. Qc3 {[%clk 0:00:18]}  Nf6 {[%clk 0:00:11]} 39. Rc7 {[%clk 0:00:18]}  Qa6 {[%clk 0:00:10]} 40. Qc4 {[%clk 0:00:16]}  Qxc4 {[%clk 0:00:07]} 41. Rxc4 {[%clk 0:00:16]}  Rd8 {[%clk 0:00:06]} 42. Kf2 {[%clk 0:00:16]}  Ne8 {[%clk 0:00:06]} 43. Ke3 {[%clk 0:00:15]}  Nd6 {[%clk 0:00:06]} 44. Rc7 {[%clk 0:00:15]}  f6 {[%clk 0:00:06]} 45. Nc4 {[%clk 0:00:14]}  Nb5 {[%clk 0:00:06]} 46. Rc6 {[%clk 0:00:13]}  Nxd4 {[%clk 0:00:06]} 47. Ra6 {[%clk 0:00:13]}  Nc2+ {[%clk 0:00:06]} 48. Kf4 {[%clk 0:00:12]}  e5+ {[%clk 0:00:07]} 49. Kg4 {[%clk 0:00:12]}  Nd4 {[%clk 0:00:04]} 50. Rxa4 {[%clk 0:00:11]}  g6 {[%clk 0:00:03]} 51. h5 {[%clk 0:00:11]}  gxh5+ {[%clk 0:00:04]} 52. Kxh5 {[%clk 0:00:12]}  Nxf3 {[%clk 0:00:05]} 53. Kxh6 {[%clk 0:00:12]}  Ng5 {[%clk 0:00:05]} 54. Kg6 {[%clk 0:00:12]}  Rf8 {[%clk 0:00:05]} 55. Nd6 {[%clk 0:00:12]}  Ne6 {[%clk 0:00:04]} 56. Kf5 {[%clk 0:00:12]}  Nd4+ {[%clk 0:00:04]} 57. Kg6 {[%clk 0:00:12]}  Ne6 {[%clk 0:00:04]} 58. Ra7 {[%clk 0:00:12]}  Nd8 {[%clk 0:00:02]} 59. Nf5 {[%clk 0:00:12]}  Ne6 {[%clk 0:00:02]} 60. Ne7+ {[%clk 0:00:11]}  Kh8 {[%clk 0:00:02]} 61. Nf5 {[%clk 0:00:11]}  Kg8 {[%clk 0:00:02]} 62. Nh6+ {[%clk 0:00:11]}  Kh8 {[%clk 0:00:03]} 63. Nf7+ {[%clk 0:00:11]}  Kg8 {[%clk 0:00:03]} 64. Nh6+ {[%clk 0:00:12]}  Kh8 {[%clk 0:00:04]} 65. Rh7# {[%clk 0:00:11]} 1-0


[Site "https://www.chess.com"]

[Event "Titled Tuesday Blitz May 23 Early 2023"]
[White "Estremera Panos, Sergio"]
[Black "Nikologorskiy, Konstantin"]
[WhiteFideId "2200864"]
[BlackFideId "24111708"]
[WhiteElo "2253"]
[BlackElo "2273"]
[Result "1-0"]
[Round "01"]
[TimeControl "180+2"]
[Date "2023.05.23"]
[WhiteClock "0:00:54"]
[BlackClock "0:01:04"]

1. d4 {[%clk 0:02:57]}  Nf6 {[%clk 0:02:59]} 2. c4 {[%clk 0:02:57]}  e6 {[%clk 0:02:58]} 3. Nc3 {[%clk 0:02:57]}  Bb4 {[%clk 0:02:59]} 4. e3 {[%clk 0:02:55]}  O-O {[%clk 0:02:58]} 5. Bd3 {[%clk 0:02:55]}  d5 {[%clk 0:02:57]} 6. a3 {[%clk 0:02:51]}  Bd6 {[%clk 0:02:53]} 7. c5 {[%clk 0:02:50]}  Be7 {[%clk 0:02:53]} 8. b4 {[%clk 0:02:50]}  b6 {[%clk 0:02:53]} 9. Nf3 {[%clk 0:02:50]}  a5 {[%clk 0:02:53]} 10. Bd2 {[%clk 0:02:46]}  c6 {[%clk 0:02:53]} 11. O-O {[%clk 0:02:45]}  Ba6 {[%clk 0:02:54]} 12. Qe2 {[%clk 0:02:43]}  Bxd3 {[%clk 0:02:51]} 13. Qxd3 {[%clk 0:02:44]}  Nbd7 {[%clk 0:02:51]} 14. Rfb1 {[%clk 0:02:31]}  Qc7 {[%clk 0:02:47]} 15. h3 {[%clk 0:02:24]}  bxc5 {[%clk 0:02:29]} 16. bxc5 {[%clk 0:02:23]}  e5 {[%clk 0:02:30]} 17. Qc2 {[%clk 0:02:17]}  e4 {[%clk 0:02:25]} 18. Ne1 {[%clk 0:02:13]}  Nh5 {[%clk 0:02:24]} 19. Rb3 {[%clk 0:02:08]}  f5 {[%clk 0:02:18]} 20. Rab1 {[%clk 0:02:07]}  Rab8 {[%clk 0:02:19]} 21. Qb2 {[%clk 0:02:05]}  f4 {[%clk 0:01:59]} 22. Rb7 {[%clk 0:02:04]}  fxe3 {[%clk 0:01:48]} 23. Bxe3 {[%clk 0:01:54]}  Qc8 {[%clk 0:01:42]} 24. Na4 {[%clk 0:01:41]}  Nf4 {[%clk 0:01:22]} 25. Rxb8 {[%clk 0:01:32]}  Qxb8 {[%clk 0:01:14]} 26. Qxb8 {[%clk 0:01:29]}  Ne2+ {[%clk 0:01:14]} 27. Kf1 {[%clk 0:01:29]}  Nxb8 {[%clk 0:01:08]} 28. Kxe2 {[%clk 0:01:27]}  Nd7 {[%clk 0:01:03]} 29. Rb7 {[%clk 0:01:26]}  Rd8 {[%clk 0:01:01]} 30. Nb6 {[%clk 0:01:27]}  Nxb6 {[%clk 0:01:01]} 31. cxb6 {[%clk 0:01:27]}  Bxa3 {[%clk 0:01:00]} 32. Ra7 {[%clk 0:01:23]}  Bb4 {[%clk 0:01:00]} 33. b7 {[%clk 0:01:23]}  Rb8 {[%clk 0:00:58]} 34. Ra8 {[%clk 0:01:23]}  Bd6 {[%clk 0:00:58]} 35. g3 {[%clk 0:01:09]}  Kf7 {[%clk 0:00:57]} 36. Rxb8 {[%clk 0:01:09]}  Bxb8 {[%clk 0:00:53]} 37. Bf4 {[%clk 0:01:09]}  Ba7 {[%clk 0:00:54]} 38. b8=Q {[%clk 0:01:09]}  Bxb8 {[%clk 0:00:55]} 39. Bxb8 {[%clk 0:01:09]}  Ke6 {[%clk 0:00:55]} 40. Ba7 {[%clk 0:01:09]}  g6 {[%clk 0:00:54]} 41. Bc5 {[%clk 0:01:10]}  Kd7 {[%clk 0:00:54]} 42. Nc2 {[%clk 0:01:10]}  Kc7 {[%clk 0:00:55]} 43. f3 {[%clk 0:01:08]}  Kb7 {[%clk 0:00:56]} 44. fxe4 {[%clk 0:01:08]}  dxe4 {[%clk 0:00:57]} 45. Ke3 {[%clk 0:01:09]}  Ka6 {[%clk 0:00:57]} 46. Kxe4 {[%clk 0:01:09]}  Kb5 {[%clk 0:00:58]} 47. Ke5 {[%clk 0:01:08]}  Kc4 {[%clk 0:00:58]} 48. Na3+ {[%clk 0:01:08]}  Kd3 {[%clk 0:00:54]} 49. Kd6 {[%clk 0:01:08]}  Ke4 {[%clk 0:00:55]} 50. Kxc6 {[%clk 0:01:08]}  Kf3 {[%clk 0:00:56]} 51. d5 {[%clk 0:01:08]}  Kxg3 {[%clk 0:00:57]} 52. d6 {[%clk 0:01:09]}  Kxh3 {[%clk 0:00:58]} 53. d7 {[%clk 0:01:09]}  g5 {[%clk 0:00:59]} 54. d8=Q {[%clk 0:01:09]}  g4 {[%clk 0:00:59]} 55. Qh8 {[%clk 0:01:08]}  g3 {[%clk 0:00:59]} 56. Qxh7+ {[%clk 0:01:08]}  Kg2 {[%clk 0:01:00]} 57. Qe4+ {[%clk 0:01:08]}  Kh2 {[%clk 0:01:00]} 58. Qe2+ {[%clk 0:01:06]}  Kh3 {[%clk 0:01:00]} 59. Qf1+ {[%clk 0:01:00]}  g2 {[%clk 0:00:57]} 60. Qg1 {[%clk 0:01:01]}  a4 {[%clk 0:00:58]} 61. Kd5 {[%clk 0:01:00]}  Kg3 {[%clk 0:00:59]} 62. Ke4 {[%clk 0:01:00]}  Kh3 {[%clk 0:01:00]} 63. Kf3 {[%clk 0:00:59]}  Kh4 {[%clk 0:01:00]} 64. Qxg2 {[%clk 0:00:57]}  Kh5 {[%clk 0:01:01]} 65. Kf4 {[%clk 0:00:56]}  Kh6 {[%clk 0:01:02]} 66. Kf5 {[%clk 0:00:56]}  Kh7 {[%clk 0:01:03]} 67. Kf6 {[%clk 0:00:54]}  Kh8 {[%clk 0:01:04]} 1-0


[Site "https://www.chess.com"]

[Event "Titled Tuesday Blitz May 23 Early 2023"]
[White "brm72"]
[Black "ChawitAp"]
[WhiteElo "2585"]
[BlackElo "2257"]
[Result "1-0"]
[Round "01"]
[TimeControl "180+2"]
[Date "2023.05.23"]
[WhiteClock "0:00:18"]
[BlackClock "0:00:00"]

1. d4 {[%clk 0:03:00]}  d5 {[%clk 0:02:59]} 2. c4 {[%clk 0:03:00]}  c6 {[%clk 0:03:00]} 3. Nf3 {[%clk 0:02:58]}  Nf6 {[%clk 0:03:00]} 4. g3 {[%clk 0:02:58]}  Bg4 {[%clk 0:02:59]} 5. Bg2 {[%clk 0:02:58]}  Nbd7 {[%clk 0:02:59]} 6. O-O {[%clk 0:02:57]}  e6 {[%clk 0:02:59]} 7. Qc2 {[%clk 0:02:52]}  Bf5 {[%clk 0:02:57]} 8. Qb3 {[%clk 0:02:43]}  Qb6 {[%clk 0:02:55]} 9. c5 {[%clk 0:02:33]}  Qc7 {[%clk 0:02:55]} 10. Bf4 {[%clk 0:02:32]}  Qc8 {[%clk 0:02:55]} 11. Nc3 {[%clk 0:02:27]}  Be7 {[%clk 0:02:55]} 12. Nd2 {[%clk 0:02:20]}  O-O {[%clk 0:02:51]} 13. f3 {[%clk 0:02:17]}  e5 {[%clk 0:02:33]} 14. dxe5 {[%clk 0:02:00]}  Nxc5 {[%clk 0:02:25]} 15. Qd1 {[%clk 0:01:58]}  Nfd7 {[%clk 0:02:24]} 16. g4 {[%clk 0:01:35]}  Bg6 {[%clk 0:02:23]} 17. Bg3 {[%clk 0:01:34]}  f6 {[%clk 0:02:11]} 18. exf6 {[%clk 0:01:26]}  Nxf6 {[%clk 0:02:02]} 19. Nb3 {[%clk 0:01:19]}  Nxb3 {[%clk 0:01:59]} 20. Qxb3 {[%clk 0:01:20]}  Re8 {[%clk 0:01:49]} 21. Rac1 {[%clk 0:01:10]}  Bc5+ {[%clk 0:01:44]} 22. Kh1 {[%clk 0:01:10]}  Be3 {[%clk 0:01:43]} 23. Rcd1 {[%clk 0:01:09]}  Kh8 {[%clk 0:01:41]} 24. h4 {[%clk 0:00:59]}  a5 {[%clk 0:00:31]} 25. h5 {[%clk 0:00:42]}  Bf7 {[%clk 0:00:23]} 26. Qc2 {[%clk 0:00:42]}  d4 {[%clk 0:00:19]} 27. Na4 {[%clk 0:00:41]}  Bd5 {[%clk 0:00:15]} 28. Nb6 {[%clk 0:00:40]}  Qe6 {[%clk 0:00:13]} 29. Nxa8 {[%clk 0:00:40]}  Rxa8 {[%clk 0:00:12]} 30. Kh2 {[%clk 0:00:26]}  a4 {[%clk 0:00:12]} 31. Bh3 {[%clk 0:00:22]}  Bxa2 {[%clk 0:00:11]} 32. g5 {[%clk 0:00:21]}  Qf7 {[%clk 0:00:07]} 33. gxf6 {[%clk 0:00:20]}  Qxh5 {[%clk 0:00:07]} 34. Qf5 {[%clk 0:00:20]}  Qxf5 {[%clk 0:00:05]} 35. Bxf5 {[%clk 0:00:21]}  gxf6 {[%clk 0:00:05]} 36. Kg2 {[%clk 0:00:19]}  Ra6 {[%clk 0:00:04]} 37. Rh1 {[%clk 0:00:19]}  h6 {[%clk 0:00:00]} 38. Bf2 {[%clk 0:00:18]} 1-0


[Site "https://www.chess.com"]

[Event "Titled Tuesday Blitz May 23 Early 2023"]
[White "Spitzl, Vinzent"]
[Black "Zaichenko, Daria"]
[WhiteFideId "12901253"]
[BlackFideId "4197453"]
[WhiteElo "2225"]
[BlackElo "2039"]
[Result "1-0"]
[Round "01"]
[TimeControl "180+2"]
[Date "2023.05.23"]
[WhiteClock "0:00:32"]
[BlackClock "0:00:00"]

1. e4 {[%clk 0:03:00]}  c5 {[%clk 0:02:58]} 2. Nf3 {[%clk 0:03:00]}  Nc6 {[%clk 0:02:47]} 3. d4 {[%clk 0:03:00]}  cxd4 {[%clk 0:02:43]} 4. Nxd4 {[%clk 0:03:01]}  Nf6 {[%clk 0:02:42]} 5. Nc3 {[%clk 0:03:01]}  d6 {[%clk 0:02:42]} 6. Bg5 {[%clk 0:03:00]}  Bd7 {[%clk 0:02:39]} 7. Qd2 {[%clk 0:02:59]}  a6 {[%clk 0:02:36]} 8. O-O-O {[%clk 0:02:57]}  e6 {[%clk 0:02:35]} 9. f3 {[%clk 0:02:56]}  Be7 {[%clk 0:02:33]} 10. h4 {[%clk 0:02:54]}  Qa5 {[%clk 0:02:25]} 11. Nxc6 {[%clk 0:02:42]}  Bxc6 {[%clk 0:02:21]} 12. Kb1 {[%clk 0:02:39]}  O-O-O {[%clk 0:02:12]} 13. Nd5 {[%clk 0:02:30]}  Qxd2 {[%clk 0:02:10]} 14. Nxe7+ {[%clk 0:02:30]}  Kd7 {[%clk 0:02:11]} 15. Rxd2 {[%clk 0:02:27]}  Kxe7 {[%clk 0:02:11]} 16. Bd3 {[%clk 0:02:23]}  h6 {[%clk 0:02:06]} 17. Be3 {[%clk 0:02:23]}  Nd7 {[%clk 0:01:55]} 18. Rhd1 {[%clk 0:02:19]}  Ne5 {[%clk 0:01:46]} 19. Be2 {[%clk 0:02:18]}  d5 {[%clk 0:01:42]} 20. f4 {[%clk 0:02:09]}  Ng6 {[%clk 0:01:16]} 21. Bc5+ {[%clk 0:02:00]}  Kd7 {[%clk 0:01:07]} 22. exd5 {[%clk 0:01:57]}  exd5 {[%clk 0:01:07]} 23. Bb6 {[%clk 0:01:42]}  Rdf8 {[%clk 0:00:48]} 24. g3 {[%clk 0:01:38]}  Kc8 {[%clk 0:00:41]} 25. Bf3 {[%clk 0:01:34]}  Ne7 {[%clk 0:00:35]} 26. Bc5 {[%clk 0:01:18]}  Re8 {[%clk 0:00:34]} 27. Bxe7 {[%clk 0:01:18]}  Rxe7 {[%clk 0:00:33]} 28. Bxd5 {[%clk 0:01:18]}  Bxd5 {[%clk 0:00:24]} 29. Rxd5 {[%clk 0:01:18]}  Rhe8 {[%clk 0:00:25]} 30. b3 {[%clk 0:01:05]}  Re3 {[%clk 0:00:22]} 31. R5d3 {[%clk 0:01:05]}  Rxd3 {[%clk 0:00:19]} 32. Rxd3 {[%clk 0:01:04]}  Kc7 {[%clk 0:00:19]} 33. Kb2 {[%clk 0:01:03]}  Kc6 {[%clk 0:00:19]} 34. a4 {[%clk 0:01:03]}  Re1 {[%clk 0:00:18]} 35. a5 {[%clk 0:01:00]}  g6 {[%clk 0:00:14]} 36. b4 {[%clk 0:00:56]}  Kb5 {[%clk 0:00:13]} 37. Kc3 {[%clk 0:00:55]}  Re4 {[%clk 0:00:11]} 38. Rd5+ {[%clk 0:00:55]}  Kc6 {[%clk 0:00:11]} 39. Rc5+ {[%clk 0:00:54]}  Kd6 {[%clk 0:00:12]} 40. Kb3 {[%clk 0:00:53]}  Re3+ {[%clk 0:00:11]} 41. Rc3 {[%clk 0:00:53]}  Re4 {[%clk 0:00:10]} 42. Rd3+ {[%clk 0:00:53]}  Kc6 {[%clk 0:00:09]} 43. c4 {[%clk 0:00:53]}  Re1 {[%clk 0:00:09]} 44. Kc3 {[%clk 0:00:43]}  Rc1+ {[%clk 0:00:08]} 45. Kd4 {[%clk 0:00:41]}  Rb1 {[%clk 0:00:09]} 46. Kc3 {[%clk 0:00:41]}  Rc1+ {[%clk 0:00:08]} 47. Kb3 {[%clk 0:00:41]}  Rb1+ {[%clk 0:00:08]} 48. Ka3 {[%clk 0:00:41]}  Rc1 {[%clk 0:00:07]} 49. c5 {[%clk 0:00:42]}  Re1 {[%clk 0:00:06]} 50. Rd6+ {[%clk 0:00:39]}  Kc7 {[%clk 0:00:04]} 51. Rd3 {[%clk 0:00:39]}  Kc6 {[%clk 0:00:03]} 52. Kb3 {[%clk 0:00:39]}  Re4 {[%clk 0:00:03]} 53. Kc3 {[%clk 0:00:33]}  Kb5 {[%clk 0:00:02]} 54. Rd7 {[%clk 0:00:33]}  Ka4 {[%clk 0:00:02]} 55. Rxb7 {[%clk 0:00:32]}  Re3+ {[%clk 0:00:02]} 56. Kd4 {[%clk 0:00:32]}  Rxg3 {[%clk 0:00:00]} 57. c6 {[%clk 0:00:32]} 1-0


[Site "https://www.chess.com"]